[Event "Titled Tuesday Blitz April 25 Early 2023"]
[White "Ljukin, Sergei"]
[Black "Lopez Del Alamo, Antonio"]
[WhiteFideId "14102200"]
[BlackFideId "2227339"]
[WhiteElo "2312"]
[BlackElo "2175"]
[Result "0-1"]
[Round "06"]
[TimeControl "180+2"]
[Date "2023.04.25"]
[WhiteClock "0:00:01"]
[BlackClock "0:00:29"]

1. e4 {[%clk 0:02:56]}  c5 {[%clk 0:02:59]} 2. Nf3 {[%clk 0:02:55]}  e6 {[%clk 0:02:59]} 3. d4 {[%clk 0:02:56]}  cxd4 {[%clk 0:02:58]} 4. Nxd4 {[%clk 0:02:56]}  Nf6 {[%clk 0:02:57]} 5. Nc3 {[%clk 0:02:56]}  Nc6 {[%clk 0:02:56]} 6. Nxc6 {[%clk 0:02:56]}  bxc6 {[%clk 0:02:56]} 7. e5 {[%clk 0:02:57]}  Nd5 {[%clk 0:02:56]} 8. Ne4 {[%clk 0:02:58]}  Bb7 {[%clk 0:02:56]} 9. Be2 {[%clk 0:02:54]}  c5 {[%clk 0:02:55]} 10. O-O {[%clk 0:02:50]}  Qc7 {[%clk 0:02:55]} 11. f4 {[%clk 0:02:48]}  c4 {[%clk 0:02:34]} 12. Qd4 {[%clk 0:02:21]}  Rc8 {[%clk 0:02:28]} 13. c3 {[%clk 0:01:49]}  Bc5 {[%clk 0:02:21]} 14. Nxc5 {[%clk 0:01:47]}  Qxc5 {[%clk 0:02:22]} 15. Rd1 {[%clk 0:01:37]}  O-O {[%clk 0:02:18]} 16. Kh1 {[%clk 0:01:35]}  Qxd4 {[%clk 0:02:17]} 17. Rxd4 {[%clk 0:01:34]}  Nb6 {[%clk 0:02:11]} 18. Be3 {[%clk 0:01:25]}  Bd5 {[%clk 0:02:05]} 19. a4 {[%clk 0:01:00]}  a5 {[%clk 0:02:05]} 20. f5 {[%clk 0:00:51]}  Rc6 {[%clk 0:02:00]} 21. f6 {[%clk 0:00:43]}  g6 {[%clk 0:01:59]} 22. h4 {[%clk 0:00:20]}  Na8 {[%clk 0:01:35]} 23. h5 {[%clk 0:00:18]}  Rb8 {[%clk 0:01:31]} 24. Bc1 {[%clk 0:00:12]}  Nc7 {[%clk 0:01:07]} 25. hxg6 {[%clk 0:00:11]}  fxg6 {[%clk 0:01:07]} 26. Kh2 {[%clk 0:00:09]}  Na6 {[%clk 0:01:04]} 27. Kg3 {[%clk 0:00:04]}  Nc5 {[%clk 0:00:51]} 28. Rf4 {[%clk 0:00:04]}  Kf7 {[%clk 0:00:48]} 29. Be3 {[%clk 0:00:02]}  Ne4+ {[%clk 0:00:40]} 30. Kh2 {[%clk 0:00:02]}  Rxb2 {[%clk 0:00:39]} 31. Bf3 {[%clk 0:00:02]}  Nxc3 {[%clk 0:00:35]} 32. Bd4 {[%clk 0:00:02]}  Rc2 {[%clk 0:00:31]} 33. Bxd5 {[%clk 0:00:02]}  Nxd5 {[%clk 0:00:31]} 34. Rb1 {[%clk 0:00:01]}  Nxf4 {[%clk 0:00:29]} 0-1


[Site "https://www.chess.com"]

[Event "Titled Tuesday Blitz April 25 Early 2023"]
[White "Arat, Ufuk Sezen"]
[Black "Szente Varga, Fruzsina"]
[WhiteFideId "6309089"]
[BlackFideId "712264"]
[WhiteElo "2289"]
[BlackElo "1994"]
[Result "1-0"]
[Round "06"]
[TimeControl "180+2"]
[Date "2023.04.25"]
[WhiteClock "0:00:22"]
[BlackClock "0:00:14"]

1. e4 {[%clk 0:03:00]}  e5 {[%clk 0:02:51]} 2. Nf3 {[%clk 0:03:00]}  Nc6 {[%clk 0:02:49]} 3. c3 {[%clk 0:03:00]}  d5 {[%clk 0:02:44]} 4. Qa4 {[%clk 0:03:00]}  Qd6 {[%clk 0:02:17]} 5. d4 {[%clk 0:02:28]}  Bd7 {[%clk 0:02:00]} 6. Bb5 {[%clk 0:01:48]}  dxe4 {[%clk 0:01:53]} 7. dxe5 {[%clk 0:01:18]}  Qd5 {[%clk 0:01:34]} 8. Nfd2 {[%clk 0:00:54]}  e3 {[%clk 0:01:28]} 9. Nf3 {[%clk 0:00:40]}  exf2+ {[%clk 0:01:26]} 10. Kxf2 {[%clk 0:00:41]}  Bc5+ {[%clk 0:01:26]} 11. Be3 {[%clk 0:00:40]}  Bxe3+ {[%clk 0:01:23]} 12. Kxe3 {[%clk 0:00:41]}  a6 {[%clk 0:01:22]} 13. Bxc6 {[%clk 0:00:35]}  Bxc6 {[%clk 0:01:22]} 14. Qd4 {[%clk 0:00:35]}  Qe6 {[%clk 0:01:10]} 15. Rd1 {[%clk 0:00:34]}  Ne7 {[%clk 0:01:09]} 16. Kf2 {[%clk 0:00:33]}  O-O {[%clk 0:01:04]} 17. Nbd2 {[%clk 0:00:32]}  Rad8 {[%clk 0:01:00]} 18. Qc4 {[%clk 0:00:22]}  Nd5 {[%clk 0:00:38]} 19. Ne4 {[%clk 0:00:17]}  Qh6 {[%clk 0:00:37]} 20. Qe2 {[%clk 0:00:14]}  Nf4 {[%clk 0:00:35]} 21. Qe3 {[%clk 0:00:15]}  Rd6 {[%clk 0:00:17]} 22. exd6 {[%clk 0:00:14]}  cxd6 {[%clk 0:00:17]} 23. Rxd6 {[%clk 0:00:13]}  Ne6 {[%clk 0:00:17]} 24. Qxh6 {[%clk 0:00:12]}  gxh6 {[%clk 0:00:17]} 25. Nf6+ {[%clk 0:00:13]}  Kg7 {[%clk 0:00:17]} 26. Nd5 {[%clk 0:00:13]}  Re8 {[%clk 0:00:17]} 27. Nd4 {[%clk 0:00:13]}  Ng5 {[%clk 0:00:15]} 28. Nxc6 {[%clk 0:00:13]}  Ne4+ {[%clk 0:00:15]} 29. Kf1 {[%clk 0:00:13]}  Nxd6 {[%clk 0:00:16]} 30. Nd4 {[%clk 0:00:13]}  Rd8 {[%clk 0:00:15]} 31. Re1 {[%clk 0:00:13]}  Nc4 {[%clk 0:00:15]} 32. Ne3 {[%clk 0:00:13]}  Nxb2 {[%clk 0:00:16]} 33. Rb1 {[%clk 0:00:14]}  Na4 {[%clk 0:00:15]} 34. Rxb7 {[%clk 0:00:14]}  Nxc3 {[%clk 0:00:16]} 35. Ndf5+ {[%clk 0:00:14]}  Kf6 {[%clk 0:00:16]} 36. Rb6+ {[%clk 0:00:14]}  Kg5 {[%clk 0:00:16]} 37. Kf2 {[%clk 0:00:14]}  Ne4+ {[%clk 0:00:16]} 38. Kf3 {[%clk 0:00:14]}  Nd2+ {[%clk 0:00:16]} 39. Kg3 {[%clk 0:00:14]}  Ne4+ {[%clk 0:00:16]} 40. Kf3 {[%clk 0:00:14]}  Nf6 {[%clk 0:00:16]} 41. Ke2 {[%clk 0:00:15]}  Ng4 {[%clk 0:00:16]} 42. Nxg4 {[%clk 0:00:15]}  Kxg4 {[%clk 0:00:16]} 43. Ne3+ {[%clk 0:00:15]}  Kf4 {[%clk 0:00:16]} 44. Rxa6 {[%clk 0:00:16]}  Re8 {[%clk 0:00:16]} 45. Ra4+ {[%clk 0:00:16]}  Kg5 {[%clk 0:00:16]} 46. Kf3 {[%clk 0:00:17]}  f5 {[%clk 0:00:17]} 47. Ra5 {[%clk 0:00:18]}  Rf8 {[%clk 0:00:17]} 48. g4 {[%clk 0:00:18]}  Kg6 {[%clk 0:00:17]} 49. Rxf5 {[%clk 0:00:19]}  Ra8 {[%clk 0:00:17]} 50. h4 {[%clk 0:00:19]}  Rxa2 {[%clk 0:00:17]} 51. h5+ {[%clk 0:00:20]}  Kg7 {[%clk 0:00:17]} 52. Nd5 {[%clk 0:00:21]}  Ra3+ {[%clk 0:00:18]} 53. Ke4 {[%clk 0:00:20]}  Ra4+ {[%clk 0:00:19]} 54. Kf3 {[%clk 0:00:19]}  Ra3+ {[%clk 0:00:19]} 55. Ne3 {[%clk 0:00:19]}  Rb3 {[%clk 0:00:19]} 56. Re5 {[%clk 0:00:19]}  Ra3 {[%clk 0:00:19]} 57. Kf4 {[%clk 0:00:20]}  Ra4+ {[%clk 0:00:19]} 58. Kf5 {[%clk 0:00:20]}  Rb4 {[%clk 0:00:18]} 59. Re7+ {[%clk 0:00:20]}  Kg8 {[%clk 0:00:18]} 60. Nd5 {[%clk 0:00:21]}  Rb1 {[%clk 0:00:18]} 61. Nf4 {[%clk 0:00:19]}  Rf1 {[%clk 0:00:18]} 62. Ke5 {[%clk 0:00:17]}  Re1+ {[%clk 0:00:17]} 63. Kf6 {[%clk 0:00:17]}  Rxe7 {[%clk 0:00:14]} 64. Kxe7 {[%clk 0:00:18]}  Kg7 {[%clk 0:00:14]} 65. Ke6 {[%clk 0:00:19]}  Kg8 {[%clk 0:00:14]} 66. Kf6 {[%clk 0:00:19]}  Kh8 {[%clk 0:00:14]} 67. Nd5 {[%clk 0:00:18]}  Kg8 {[%clk 0:00:14]} 68. Nc7 {[%clk 0:00:18]}  Kh8 {[%clk 0:00:15]} 69. Ke7 {[%clk 0:00:18]}  Kg7 {[%clk 0:00:15]} 70. Ne8+ {[%clk 0:00:18]}  Kg8 {[%clk 0:00:15]} 71. Nf6+ {[%clk 0:00:18]}  Kg7 {[%clk 0:00:16]} 72. Nd5 {[%clk 0:00:18]}  Kg8 {[%clk 0:00:16]} 73. Ne3 {[%clk 0:00:19]}  Kg7 {[%clk 0:00:16]} 74. Nf5+ {[%clk 0:00:20]}  Kh8 {[%clk 0:00:16]} 75. Nxh6 {[%clk 0:00:21]}  Kg7 {[%clk 0:00:16]} 76. Nf5+ {[%clk 0:00:21]}  Kh8 {[%clk 0:00:16]} 77. g5 {[%clk 0:00:22]}  Kg8 {[%clk 0:00:17]} 78. g6 {[%clk 0:00:22]}  Kh8 {[%clk 0:00:14]} 79. g7+ {[%clk 0:00:21]}  Kg8 {[%clk 0:00:15]} 80. Kf6 {[%clk 0:00:21]}  h6 {[%clk 0:00:14]} 81. Ne7+ {[%clk 0:00:22]} 1-0


[Site "https://www.chess.com"]

[Event "Titled Tuesday Blitz April 25 Early 2023"]
[White "Garcia Almaguer, Juan Manuel"]
[Black "Psakhis, Lev"]
[WhiteFideId "5110491"]
[BlackFideId "2800012"]
[WhiteElo "2117"]
[BlackElo "2342"]
[Result "1-0"]
[Round "06"]
[TimeControl "180+2"]
[Date "2023.04.25"]
[WhiteClock "0:01:03"]
[BlackClock "0:00:33"]

1. e4 {[%clk 0:03:00]}  e6 {[%clk 0:02:58]} 2. d4 {[%clk 0:02:54]}  d5 {[%clk 0:02:58]} 3. e5 {[%clk 0:02:55]}  c5 {[%clk 0:02:57]} 4. c3 {[%clk 0:02:55]}  Nc6 {[%clk 0:02:57]} 5. Nf3 {[%clk 0:02:55]}  Bd7 {[%clk 0:02:58]} 6. Be2 {[%clk 0:02:53]}  Nge7 {[%clk 0:02:56]} 7. O-O {[%clk 0:02:50]}  Ng6 {[%clk 0:02:56]} 8. Bg5 {[%clk 0:02:43]}  Qb6 {[%clk 0:02:41]} 9. Qd2 {[%clk 0:02:42]}  h6 {[%clk 0:02:14]} 10. Be3 {[%clk 0:02:38]}  cxd4 {[%clk 0:02:14]} 11. cxd4 {[%clk 0:02:13]}  Be7 {[%clk 0:02:14]} 12. Nc3 {[%clk 0:02:10]}  O-O {[%clk 0:02:14]} 13. Na4 {[%clk 0:02:08]}  Qd8 {[%clk 0:02:13]} 14. Rac1 {[%clk 0:02:05]}  Ncxe5 {[%clk 0:01:58]} 15. Nxe5 {[%clk 0:02:03]}  Nxe5 {[%clk 0:01:58]} 16. dxe5 {[%clk 0:02:04]}  Bxa4 {[%clk 0:01:57]} 17. Bd3 {[%clk 0:01:57]}  f5 {[%clk 0:01:38]} 18. exf6 {[%clk 0:01:52]}  Bxf6 {[%clk 0:01:38]} 19. Bb1 {[%clk 0:01:42]}  e5 {[%clk 0:01:32]} 20. Rfe1 {[%clk 0:01:24]}  d4 {[%clk 0:01:06]} 21. Bxh6 {[%clk 0:01:18]}  gxh6 {[%clk 0:01:04]} 22. Qxh6 {[%clk 0:01:18]}  Qe7 {[%clk 0:01:04]} 23. Re4 {[%clk 0:01:17]}  Bd7 {[%clk 0:00:47]} 24. Rc7 {[%clk 0:01:17]}  Rac8 {[%clk 0:00:37]} 25. Rg4+ {[%clk 0:01:07]}  Bxg4 {[%clk 0:00:34]} 26. Rxe7 {[%clk 0:01:03]}  Rc1+ {[%clk 0:00:33]} 27. Qxc1 {[%clk 0:01:03]} 1-0


[Site "https://www.chess.com"]

[Event "Titled Tuesday Blitz April 25 Early 2023"]
[White "Staudenhocker43"]
[Black "Prudnykova, Olga"]
[BlackFideId "14121093"]
[WhiteElo "2466"]
[BlackElo "2113"]
[Result "1/2-1/2"]
[Round "06"]
[TimeControl "180+2"]
[Date "2023.04.25"]
[WhiteClock "0:00:20"]
[BlackClock "0:00:49"]

1. c4 {[%clk 0:02:59]}  Nf6 {[%clk 0:02:59]} 2. Nc3 {[%clk 0:02:58]}  d5 {[%clk 0:02:59]} 3. cxd5 {[%clk 0:02:58]}  Nxd5 {[%clk 0:02:59]} 4. Nf3 {[%clk 0:02:58]}  g6 {[%clk 0:02:59]} 5. d4 {[%clk 0:02:55]}  Bg7 {[%clk 0:02:58]} 6. e4 {[%clk 0:02:55]}  Nxc3 {[%clk 0:02:58]} 7. bxc3 {[%clk 0:02:56]}  c5 {[%clk 0:02:57]} 8. Rb1 {[%clk 0:02:57]}  O-O {[%clk 0:02:55]} 9. Be2 {[%clk 0:02:52]}  cxd4 {[%clk 0:02:53]} 10. cxd4 {[%clk 0:02:53]}  Qa5+ {[%clk 0:02:51]} 11. Bd2 {[%clk 0:02:53]}  Qxa2 {[%clk 0:02:51]} 12. O-O {[%clk 0:02:54]}  Bg4 {[%clk 0:02:46]} 13. Bg5 {[%clk 0:02:53]}  h6 {[%clk 0:02:39]} 14. Be3 {[%clk 0:02:53]}  Nc6 {[%clk 0:02:33]} 15. d5 {[%clk 0:02:52]}  Bxf3 {[%clk 0:02:32]} 16. Bxf3 {[%clk 0:02:47]}  Ne5 {[%clk 0:02:29]} 17. Rxb7 {[%clk 0:02:43]}  Nxf3+ {[%clk 0:02:27]} 18. Qxf3 {[%clk 0:02:42]}  e6 {[%clk 0:02:26]} 19. dxe6 {[%clk 0:02:37]}  Qxe6 {[%clk 0:02:24]} 20. Rxa7 {[%clk 0:02:35]}  Rxa7 {[%clk 0:02:24]} 21. Bxa7 {[%clk 0:02:36]}  Re8 {[%clk 0:02:21]} 22. Re1 {[%clk 0:02:31]}  Qe5 {[%clk 0:01:54]} 23. Qe3 {[%clk 0:02:08]}  Qa5 {[%clk 0:01:46]} 24. Bb6 {[%clk 0:01:36]}  Qb4 {[%clk 0:01:40]} 25. Bc5 {[%clk 0:01:33]}  Qa5 {[%clk 0:01:40]} 26. g3 {[%clk 0:01:20]}  f5 {[%clk 0:01:29]} 27. Qb3+ {[%clk 0:01:18]}  Kh7 {[%clk 0:01:29]} 28. Bb4 {[%clk 0:01:18]}  Qb5 {[%clk 0:01:21]} 29. Qa3 {[%clk 0:00:40]}  Rxe4 {[%clk 0:01:13]} 30. Rxe4 {[%clk 0:00:39]}  fxe4 {[%clk 0:01:14]} 31. Bd2 {[%clk 0:00:38]}  Qb1+ {[%clk 0:00:57]} 32. Kg2 {[%clk 0:00:38]}  Qb7 {[%clk 0:00:56]} 33. Be3 {[%clk 0:00:37]}  Qf7 {[%clk 0:00:55]} 34. Bd2 {[%clk 0:00:30]}  Qd7 {[%clk 0:00:54]} 35. Qe3 {[%clk 0:00:29]}  Qd5 {[%clk 0:00:52]} 36. h3 {[%clk 0:00:26]}  Bf8 {[%clk 0:00:51]} 37. g4 {[%clk 0:00:25]}  Bg7 {[%clk 0:00:51]} 38. Kg1 {[%clk 0:00:21]}  Qc4 {[%clk 0:00:48]} 39. Kg2 {[%clk 0:00:19]}  Qd5 {[%clk 0:00:48]} 40. Kg1 {[%clk 0:00:19]}  Qc4 {[%clk 0:00:48]} 41. Kg2 {[%clk 0:00:20]}  Qd5 {[%clk 0:00:49]} 1/2-1/2


[Site "https://www.chess.com"]

[Event "Titled Tuesday Blitz April 25 Early 2023"]
[White "Rodriguez Santiago, Jaime"]
[Black "Jovic, Stanoje"]
[WhiteFideId "3100898"]
[BlackFideId "905020"]
[WhiteElo "2025"]
[BlackElo "2236"]
[Result "0-1"]
[Round "06"]
[TimeControl "180+2"]
[Date "2023.04.25"]
[WhiteClock "0:00:07"]
[BlackClock "0:01:14"]

1. c4 {[%clk 0:03:00]}  e5 {[%clk 0:02:58]} 2. Nc3 {[%clk 0:02:59]}  Nf6 {[%clk 0:02:58]} 3. g3 {[%clk 0:03:00]}  c6 {[%clk 0:02:58]} 4. Nf3 {[%clk 0:02:56]}  e4 {[%clk 0:02:55]} 5. Nd4 {[%clk 0:02:56]}  Bc5 {[%clk 0:02:52]} 6. Nb3 {[%clk 0:02:54]}  Bb4 {[%clk 0:02:52]} 7. Bg2 {[%clk 0:02:51]}  d5 {[%clk 0:02:49]} 8. cxd5 {[%clk 0:02:43]}  cxd5 {[%clk 0:02:48]} 9. O-O {[%clk 0:02:38]}  h5 {[%clk 0:02:48]} 10. d3 {[%clk 0:02:31]}  h4 {[%clk 0:02:48]} 11. dxe4 {[%clk 0:02:26]}  Bxc3 {[%clk 0:02:46]} 12. bxc3 {[%clk 0:02:21]}  hxg3 {[%clk 0:02:46]} 13. hxg3 {[%clk 0:02:16]}  Bh3 {[%clk 0:02:45]} 14. Ba3 {[%clk 0:02:07]}  Qc8 {[%clk 0:02:35]} 15. Qd4 {[%clk 0:00:47]}  Nc6 {[%clk 0:02:26]} 16. Qe3 {[%clk 0:00:38]}  d4 {[%clk 0:02:19]} 17. cxd4 {[%clk 0:00:27]}  Bxg2 {[%clk 0:02:18]} 18. Kxg2 {[%clk 0:00:27]}  Rh2+ {[%clk 0:02:14]} 19. Kxh2 {[%clk 0:00:20]}  Ng4+ {[%clk 0:02:14]} 20. Kg2 {[%clk 0:00:21]}  Nxe3+ {[%clk 0:02:12]} 21. fxe3 {[%clk 0:00:21]}  Qg4 {[%clk 0:02:10]} 22. Rf3 {[%clk 0:00:22]}  O-O-O {[%clk 0:02:05]} 23. Raf1 {[%clk 0:00:20]}  Rh8 {[%clk 0:02:02]} 24. Nc5 {[%clk 0:00:20]}  f6 {[%clk 0:01:54]} 25. Kf2 {[%clk 0:00:18]}  Rh2+ {[%clk 0:01:50]} 26. Ke1 {[%clk 0:00:18]}  b6 {[%clk 0:01:46]} 27. Nd3 {[%clk 0:00:18]}  Qxe4 {[%clk 0:01:40]} 28. Kd2 {[%clk 0:00:17]}  Qe6 {[%clk 0:01:35]} 29. Rf5 {[%clk 0:00:14]}  Qxa2+ {[%clk 0:01:33]} 30. Bb2 {[%clk 0:00:15]}  Na5 {[%clk 0:01:23]} 31. Rc1+ {[%clk 0:00:15]}  Kb7 {[%clk 0:01:22]} 32. Rc2 {[%clk 0:00:10]}  Nc4+ {[%clk 0:01:19]} 33. Kc3 {[%clk 0:00:09]}  Nxe3 {[%clk 0:01:17]} 34. Rb5 {[%clk 0:00:07]}  Nxc2 {[%clk 0:01:14]} 0-1


[Site "https://www.chess.com"]

[Event "Titled Tuesday Blitz April 25 Early 2023"]
[White "Jaskolka, Tomasz"]
[Black "sebastianmarinp"]
[WhiteFideId "1170791"]
[WhiteElo "2155"]
[BlackElo "2311"]
[Result "1-0"]
[Round "06"]
[TimeControl "180+2"]
[Date "2023.04.25"]
[WhiteClock "0:00:10"]
[BlackClock "0:00:04"]

1. d4 {[%clk 0:03:00]}  Nf6 {[%clk 0:02:58]} 2. c4 {[%clk 0:03:00]}  e6 {[%clk 0:02:57]} 3. g3 {[%clk 0:03:01]}  d5 {[%clk 0:02:56]} 4. Bg2 {[%clk 0:03:01]}  Be7 {[%clk 0:02:55]} 5. Nf3 {[%clk 0:03:01]}  O-O {[%clk 0:02:55]} 6. O-O {[%clk 0:03:02]}  dxc4 {[%clk 0:02:55]} 7. Na3 {[%clk 0:03:03]}  Bxa3 {[%clk 0:02:46]} 8. bxa3 {[%clk 0:03:03]}  Nbd7 {[%clk 0:02:43]} 9. a4 {[%clk 0:03:03]}  a5 {[%clk 0:02:42]} 10. Ba3 {[%clk 0:03:03]}  Re8 {[%clk 0:02:42]} 11. Qc2 {[%clk 0:02:51]}  Nb6 {[%clk 0:02:41]} 12. Rfc1 {[%clk 0:02:31]}  Bd7 {[%clk 0:02:39]} 13. Ne5 {[%clk 0:02:27]}  Bxa4 {[%clk 0:02:38]} 14. Qd2 {[%clk 0:02:25]}  c6 {[%clk 0:02:33]} 15. Rab1 {[%clk 0:02:02]}  Bb5 {[%clk 0:02:28]} 16. Bc5 {[%clk 0:01:56]}  Nbd7 {[%clk 0:02:24]} 17. Bd6 {[%clk 0:01:49]}  Nb6 {[%clk 0:02:16]} 18. Bc5 {[%clk 0:01:44]}  Nfd7 {[%clk 0:02:07]} 19. Nxd7 {[%clk 0:01:27]}  Nxd7 {[%clk 0:02:08]} 20. Bd6 {[%clk 0:01:25]}  Nb6 {[%clk 0:01:57]} 21. Bc5 {[%clk 0:01:25]}  Nd5 {[%clk 0:01:34]} 22. a4 {[%clk 0:01:21]}  Bxa4 {[%clk 0:01:13]} 23. Rxb7 {[%clk 0:01:20]}  Bb5 {[%clk 0:01:10]} 24. Bxd5 {[%clk 0:00:53]}  exd5 {[%clk 0:01:11]} 25. Qf4 {[%clk 0:00:53]}  Qf6 {[%clk 0:01:01]} 26. Qc7 {[%clk 0:00:42]}  Rxe2 {[%clk 0:00:49]} 27. Rb8+ {[%clk 0:00:42]}  Re8 {[%clk 0:00:49]} 28. Rxa8 {[%clk 0:00:42]}  Rxa8 {[%clk 0:00:50]} 29. Bd6 {[%clk 0:00:38]}  Qd8 {[%clk 0:00:47]} 30. Qb7 {[%clk 0:00:35]}  a4 {[%clk 0:00:33]} 31. Ba3 {[%clk 0:00:35]}  Rb8 {[%clk 0:00:27]} 32. Qa7 {[%clk 0:00:35]}  Qb6 {[%clk 0:00:24]} 33. Qe7 {[%clk 0:00:34]}  Qxd4 {[%clk 0:00:20]} 34. Qd6 {[%clk 0:00:32]}  Re8 {[%clk 0:00:18]} 35. Qd7 {[%clk 0:00:28]}  Qe4 {[%clk 0:00:15]} 36. Bb2 {[%clk 0:00:27]}  Qe7 {[%clk 0:00:12]} 37. Qg4 {[%clk 0:00:26]}  f6 {[%clk 0:00:11]} 38. h4 {[%clk 0:00:26]}  a3 {[%clk 0:00:11]} 39. Bd4 {[%clk 0:00:25]}  c3 {[%clk 0:00:08]} 40. Bxc3 {[%clk 0:00:24]}  Qe4 {[%clk 0:00:06]} 41. Qd7 {[%clk 0:00:22]}  Be2 {[%clk 0:00:04]} 42. Qxc6 {[%clk 0:00:15]}  Bf3 {[%clk 0:00:04]} 43. Kh2 {[%clk 0:00:12]}  Qe2 {[%clk 0:00:04]} 44. Bd4 {[%clk 0:00:10]}  a2 {[%clk 0:00:04]} 45. Be3 {[%clk 0:00:10]} 1-0


[Site "https://www.chess.com"]

[Event "Titled Tuesday Blitz April 25 Early 2023"]
[White "Bekkedahl, Zachary"]
[Black "HamedWafa4"]
[WhiteFideId "2069156"]
[WhiteElo "1943"]
[BlackElo "2453"]
[Result "0-1"]
[Round "06"]
[TimeControl "180+2"]
[Date "2023.04.25"]
[WhiteClock "0:00:45"]
[BlackClock "0:01:26"]

1. e4 {[%clk 0:03:00]}  e5 {[%clk 0:02:58]} 2. Nf3 {[%clk 0:03:01]}  Nc6 {[%clk 0:02:57]} 3. Bb5 {[%clk 0:03:01]}  a6 {[%clk 0:02:57]} 4. Ba4 {[%clk 0:03:02]}  Nf6 {[%clk 0:02:56]} 5. O-O {[%clk 0:03:03]}  Be7 {[%clk 0:02:57]} 6. Re1 {[%clk 0:03:02]}  b5 {[%clk 0:02:57]} 7. Bb3 {[%clk 0:03:02]}  O-O {[%clk 0:02:58]} 8. c3 {[%clk 0:03:03]}  d5 {[%clk 0:02:58]} 9. exd5 {[%clk 0:03:02]}  Nxd5 {[%clk 0:02:59]} 10. Nxe5 {[%clk 0:03:02]}  Nxe5 {[%clk 0:03:00]} 11. Rxe5 {[%clk 0:03:02]}  Nf6 {[%clk 0:03:01]} 12. d4 {[%clk 0:03:02]}  Bd6 {[%clk 0:03:01]} 13. Re1 {[%clk 0:03:02]}  Ng4 {[%clk 0:03:02]} 14. h3 {[%clk 0:02:47]}  Bh2+ {[%clk 0:03:00]} 15. Kf1 {[%clk 0:02:41]}  Nxf2 {[%clk 0:03:01]} 16. Kxf2 {[%clk 0:02:36]}  Qh4+ {[%clk 0:03:01]} 17. Kf1 {[%clk 0:02:31]}  Bg3 {[%clk 0:02:25]} 18. Re2 {[%clk 0:02:04]}  Bg4 {[%clk 0:02:17]} 19. Be3 {[%clk 0:01:51]}  Rae8 {[%clk 0:02:13]} 20. hxg4 {[%clk 0:01:46]}  Re6 {[%clk 0:01:43]} 21. Bxe6 {[%clk 0:01:09]}  fxe6+ {[%clk 0:01:42]} 22. Rf2 {[%clk 0:01:09]}  Bxf2 {[%clk 0:01:38]} 23. Ke2 {[%clk 0:00:48]}  Qxg4+ {[%clk 0:01:28]} 24. Kd2 {[%clk 0:00:48]}  Bxe3+ {[%clk 0:01:27]} 25. Kc2 {[%clk 0:00:45]}  Rf2+ {[%clk 0:01:27]} 26. Kb3 {[%clk 0:00:45]}  Qxd1+ {[%clk 0:01:26]} 0-1


[Site "https://www.chess.com"]

[Event "Titled Tuesday Blitz April 25 Early 2023"]
[White "Zhukova, Natalia"]
[Black "Smith, Garrett L"]
[WhiteFideId "14101513"]
[BlackFideId "2024829"]
[WhiteElo "2297"]
[BlackElo "2262"]
[Result "0-1"]
[Round "06"]
[TimeControl "180+2"]
[Date "2023.04.25"]
[WhiteClock "0:00:17"]
[BlackClock "0:00:55"]

1. c4 {[%clk 0:03:00]}  c5 {[%clk 0:03:00]} 2. Nf3 {[%clk 0:02:59]}  Nc6 {[%clk 0:03:00]} 3. d4 {[%clk 0:03:00]}  cxd4 {[%clk 0:03:00]} 4. Nxd4 {[%clk 0:03:01]}  e5 {[%clk 0:02:59]} 5. Nb5 {[%clk 0:02:59]}  d6 {[%clk 0:03:00]} 6. N5c3 {[%clk 0:02:52]}  Be7 {[%clk 0:02:57]} 7. g3 {[%clk 0:02:49]}  Be6 {[%clk 0:02:56]} 8. Nd5 {[%clk 0:02:47]}  h5 {[%clk 0:02:54]} 9. h4 {[%clk 0:02:39]}  Nf6 {[%clk 0:02:49]} 10. Bg2 {[%clk 0:02:35]}  O-O {[%clk 0:02:38]} 11. Nbc3 {[%clk 0:02:34]}  Rc8 {[%clk 0:02:36]} 12. O-O {[%clk 0:02:29]}  Na5 {[%clk 0:02:24]} 13. b3 {[%clk 0:02:28]}  a6 {[%clk 0:02:20]} 14. a4 {[%clk 0:02:21]}  Nxd5 {[%clk 0:02:06]} 15. Nxd5 {[%clk 0:02:19]}  Nc6 {[%clk 0:02:03]} 16. Ba3 {[%clk 0:02:17]}  Nd4 {[%clk 0:01:53]} 17. e3 {[%clk 0:02:16]}  Nf5 {[%clk 0:01:48]} 18. Qxh5 {[%clk 0:02:14]}  g6 {[%clk 0:01:47]} 19. Qe2 {[%clk 0:02:04]}  Re8 {[%clk 0:01:35]} 20. Nxe7+ {[%clk 0:02:03]}  Qxe7 {[%clk 0:01:30]} 21. Rfd1 {[%clk 0:01:51]}  b5 {[%clk 0:01:28]} 22. axb5 {[%clk 0:01:27]}  axb5 {[%clk 0:01:28]} 23. Bd5 {[%clk 0:01:28]}  bxc4 {[%clk 0:01:26]} 24. bxc4 {[%clk 0:01:29]}  Rc7 {[%clk 0:01:17]} 25. h5 {[%clk 0:00:54]}  Rec8 {[%clk 0:01:16]} 26. hxg6 {[%clk 0:00:53]}  fxg6 {[%clk 0:01:16]} 27. Rab1 {[%clk 0:00:32]}  Bxd5 {[%clk 0:01:09]} 28. cxd5 {[%clk 0:00:30]}  Rc3 {[%clk 0:01:05]} 29. Bb4 {[%clk 0:00:24]}  Rc2 {[%clk 0:01:02]} 30. Rd2 {[%clk 0:00:23]}  R2c4 {[%clk 0:00:55]} 31. Ba3 {[%clk 0:00:17]}  Qg5 {[%clk 0:00:55]} 0-1


[Site "https://www.chess.com"]

[Event "Titled Tuesday Blitz April 25 Early 2023"]
[White "Bochnicka, Vladimir"]
[Black "Sailer, Mike"]
[WhiteFideId "14943450"]
[BlackFideId "2012901"]
[WhiteElo "2094"]
[BlackElo "2109"]
[Result "1-0"]
[Round "06"]
[TimeControl "180+2"]
[Date "2023.04.25"]
[WhiteClock "0:00:28"]
[BlackClock "0:00:07"]

1. e4 {[%clk 0:02:48]}  d5 {[%clk 0:02:59]} 2. exd5 {[%clk 0:02:26]}  Qxd5 {[%clk 0:02:57]} 3. Nc3 {[%clk 0:02:26]}  Qd6 {[%clk 0:02:54]} 4. d4 {[%clk 0:02:26]}  Nf6 {[%clk 0:02:53]} 5. g3 {[%clk 0:02:26]}  Bf5 {[%clk 0:02:51]} 6. Bf4 {[%clk 0:02:27]}  Qd8 {[%clk 0:02:50]} 7. Bg2 {[%clk 0:02:27]}  c6 {[%clk 0:02:50]} 8. Nge2 {[%clk 0:02:27]}  e6 {[%clk 0:02:50]} 9. O-O {[%clk 0:02:27]}  Bd6 {[%clk 0:02:37]} 10. Re1 {[%clk 0:02:27]}  Bxf4 {[%clk 0:02:36]} 11. Nxf4 {[%clk 0:02:28]}  h6 {[%clk 0:02:37]} 12. Nce2 {[%clk 0:02:23]}  O-O {[%clk 0:02:37]} 13. c4 {[%clk 0:02:22]}  Be4 {[%clk 0:02:32]} 14. Nc3 {[%clk 0:02:21]}  Bxg2 {[%clk 0:02:31]} 15. Nxg2 {[%clk 0:02:21]}  Nbd7 {[%clk 0:02:27]} 16. Qe2 {[%clk 0:02:12]}  Qb6 {[%clk 0:02:23]} 17. Rad1 {[%clk 0:02:10]}  Rad8 {[%clk 0:02:21]} 18. b3 {[%clk 0:02:09]}  Qb4 {[%clk 0:02:19]} 19. Qc2 {[%clk 0:02:07]}  b5 {[%clk 0:02:07]} 20. Ne3 {[%clk 0:01:48]}  bxc4 {[%clk 0:02:01]} 21. bxc4 {[%clk 0:01:47]}  Qa5 {[%clk 0:01:52]} 22. Rb1 {[%clk 0:01:46]}  Rb8 {[%clk 0:01:52]} 23. c5 {[%clk 0:01:12]}  e5 {[%clk 0:01:41]} 24. Nc4 {[%clk 0:01:09]}  Qc7 {[%clk 0:01:31]} 25. Nxe5 {[%clk 0:01:09]}  Nxe5 {[%clk 0:01:31]} 26. dxe5 {[%clk 0:01:07]}  Rxb1 {[%clk 0:01:24]} 27. Nxb1 {[%clk 0:01:04]}  Re8 {[%clk 0:01:14]} 28. Qc3 {[%clk 0:00:55]}  Nd7 {[%clk 0:01:00]} 29. f4 {[%clk 0:00:55]}  f6 {[%clk 0:01:01]} 30. e6 {[%clk 0:00:52]}  Nb8 {[%clk 0:00:38]} 31. Nd2 {[%clk 0:00:48]}  f5 {[%clk 0:00:27]} 32. Nc4 {[%clk 0:00:34]}  Re7 {[%clk 0:00:23]} 33. Nd6 {[%clk 0:00:30]}  Na6 {[%clk 0:00:18]} 34. Nxf5 {[%clk 0:00:28]}  Re8 {[%clk 0:00:17]} 35. e7 {[%clk 0:00:29]}  Rxe7 {[%clk 0:00:07]} 36. Rxe7 {[%clk 0:00:28]} 1-0


[Site "https://www.chess.com"]